[Event "AUT-ch U16 Boys 2022"]
[Site "Sankt Veit an der Glan"]
[Date "2022.04.10"]
[Round "2"]
[White "Leitner, Thomas"]
[Black "Weixler, Moritz"]
[Result "0-1"]
[ECO "A85"]
[WhiteElo "1734"]
[BlackElo "1190"]
[Annotator "NA RC"]
[PlyCount "68"]
[EventDate "2022.04.11"]
[EventType "swiss"]
[EventCountry "AUT"]
[SourceTitle "playchess.com"]
[Source "ChessBase"]
[SourceQuality "1"]
[TimeControl "5400+30"]

1. d4 {[%emt 0:00:30]} f5 {[%emt 0:00:21]} 2. c4 {[%emt 0:00:16]} Nf6 {[%emt 0:00:25]} 3. Nc3 {[%emt 0:00:28]} g6 {[%emt 0:00:19]} 4. h4 {[%emt 0:01:41]} h6 {[%emt 0:00:24]} 5. Nf3 {[%emt 0:00:22]} d6 {[%emt 0:00:42]} 6. Qc2 {[%emt 0:01:27]} Bg7 {[%emt 0:00:56]} 7. e3 {[%emt 0:02:54]} O-O {[%emt 0:09:34]} 8. Bd2 {[%emt 0:07:24]} Qe8 {[%emt 0:09:06]} 9. Bd3 {[%emt 0:02:23]} e5 {[%emt 0:00:44]} 10. dxe5 {[%emt 0:01:26]} dxe5 {[%emt 0:01:18]} 11. Nh2 {[%emt 0:00:17]} Be6 {[%emt 0:16:11]} 12. O-O-O {[%emt 0:14:53]} Na6 {[%emt 0:08:26]} 13. a3 {[%emt 0:00:44]} Nc5 {[%emt 0:07:45]} 14. Be2 {[%emt 0:03:35]} a6 {[%emt 0:11:51]} 15. f3 {[%emt 0:03:22]} b5 {[%emt 0:03:42]} 16. Na2 {[%emt 0:03:51]} Nb7 {[%emt 0:05:23]} 17. Kb1 {[%emt 0:06:36]} Qf7 {[%emt 0:01:34]} 18. Nb4 {[%emt 0:07:35]} bxc4 {[%emt 0:01:37]} 19. Rc1 {[%emt 0:02:11]} Na5 {[%emt 0:01:48]} 20. Rcf1 {[%emt 0:07:38]} c5 {[%emt 0:04:43]} 21. Na2 {[%emt 0:01:28]} Nb3 {[%emt 0:00:02]} 22. Nc3 {[%emt 0:03:46]} Rab8 {[%emt 0:01:11]} 23. e4 {[%emt 0:01:57]} Qd7 {[%emt 0:01:39]} 24. Be3 {[%emt 0:02:10]} Nd4 {[%emt 0:00:42]} 25. Qc1 {[%emt 0:02:42]} Rb7 {[%emt 0:00:21]} 26. Bd1 {[%emt 0:02:26]} Rfb8 {[%emt 0:00:42]} 27. Na4 {[%emt 0:01:08]} Qc6 {[%emt 0:00:41]} 28. Re1 {[%emt 0:04:21]} fxe4 {[%emt 0:00:33]} 29. fxe4 {[%emt 0:02:40]} Nxe4 {[%emt 0:04:54]} 30. g4 {[%emt 0:04:38]} Nb3 {[%emt 0:03:16]} 31. Bxb3 {[%emt 0:00:51]} Rxb3 {[%emt 0:00:22]} 32. Bxh6 {[%emt 0:08:00]} Qxa4 {[%emt 0:00:34]} 33. Bxg7 {[%emt 0:00:19]} Rxa3 {[%emt 0:00:47]} 34. Rxe4 {[%emt 0:00:45]} Ra1# {[%emt 0:00:02]} 0-1

[Event "AUT-ch U16 Boys 2022"]
[Site "Sankt Veit an der Glan"]
[Date "2022.04.10"]
[Round "2"]
[White "Schilcher, Elias"]
[Black "Hersel, Richard"]
[Result "0-1"]
[ECO "E61"]
[WhiteElo "1445"]
[BlackElo "1832"]
[Annotator "NA RC"]
[PlyCount "56"]
[EventDate "2022.04.11"]
[EventType "swiss"]
[EventCountry "AUT"]
[SourceTitle "playchess.com"]
[Source "ChessBase"]
[SourceQuality "1"]
[TimeControl "5400+30"]

1. d4 {[%emt 0:00:03]} Nf6 {[%emt 0:00:05]} 2. Nf3 {[%emt 0:00:10]} g6 {[%emt 0:00:20]} 3. Bf4 {[%emt 0:01:00]} Bg7 {[%emt 0:00:22]} 4. e3 {[%emt 0:00:23]} O-O {[%emt 0:01:15]} 5. c4 {[%emt 0:00:16]} d6 {[%emt 0:06:35]} 6. Nc3 {[%emt 0:01:20]} Nh5 {[%emt 0:04:53]} 7. Bg5 {[%emt 0:01:07]} Qe8 {[%emt 0:02:20]} 8. Nd5 {[%emt 0:01:47]} f6 {[%emt 0:01:09]} 9. Nxc7 {[%emt 0:04:03]} Qd8 {[%emt 0:04:11]} 10. Nxa8 {[%emt 0:01:29]} fxg5 {[%emt 0:00:02]} 11. Qb3 {[%emt 0:02:35]} Nc6 {[%emt 0:04:49]} 12. c5+ {[%emt 0:00:42]} d5 {[%emt 0:02:16]} 13. Rd1 {[%emt 0:04:56]} Bg4 {[%emt 0:07:46]} 14. Qxb7 {[%emt 0:02:56]} Qxa8 {[%emt 0:00:06]} 15. Qb3 {[%emt 0:01:02]} e6 {[%emt 0:03:05]} 16. Be2 {[%emt 0:00:43]} Rb8 {[%emt 0:02:48]} 17. Qc3 {[%emt 0:02:13]} Qb7 {[%emt 0:01:07]} 18. Nxg5 {[%emt 0:02:48]} Bxe2 {[%emt 0:02:04]} 19. Kxe2 {[%emt 0:00:14]} e5 {[%emt 0:13:40]} 20. dxe5 {[%emt 0:03:07]} Nxe5 {[%emt 0:00:32]} 21. Qd2 {[%emt 0:06:46]} Qa6+ {[%emt 0:06:55]} 22. Ke1 {[%emt 0:00:39]} d4 {[%emt 0:04:12]} 23. b3 {[%emt 0:03:21]} Re8 {[%emt 0:04:15]} 24. Qe2 {[%emt 0:01:32]} Qb7 {[%emt 0:11:29]} 25. f4 {[%emt 0:01:24]} d3 {[%emt 0:00:29]} 26. Qf2 {[%emt 0:06:06]} Ng4 {[%emt 0:00:50]} 27. Qh4 {[%emt 0:05:56]} Qxg2 {[%emt 0:02:29]} 28. Nh3 {[%emt 0:00:22]} Qe2# {[%emt 0:00:16]} 0-1

[Event "AUT-ch U16 Boys 2022"]
[Site "Sankt Veit an der Glan"]
[Date "2022.04.11"]
[Round "3"]
[White "Borrmann, Laurenz"]
[Black "Hofstadler, Mario"]
[Result "1/2-1/2"]
[ECO "B15"]
[WhiteElo "2232"]
[BlackElo "2090"]
[Annotator "RC"]
[PlyCount "61"]
[EventDate "2022.04.11"]
[EventType "swiss"]
[EventCountry "AUT"]
[SourceTitle "playchess.com"]
[Source "ChessBase"]
[SourceQuality "1"]
[TimeControl "5400+30"]

1. e4 {[%emt 0:01:22]} c6 {[%emt 0:00:26]} 2. d4 {[%emt 0:00:28]} d5 {[%emt 0:00:07]} 3. Nd2 {[%emt 0:00:05]} dxe4 {[%emt 0:01:06]} 4. Nxe4 {[%emt 0:00:16]} Nf6 {[%emt 0:00:47]} 5. Nxf6+ {[%emt 0:00:06]} exf6 {[%emt 0:00:17]} 6. c3 {[%emt 0:00:07]} Bd6 {[%emt 0:00:37]} 7. Bd3 {[%emt 0:00:17]} O-O {[%emt 0:01:03]} 8. Qc2 {[%emt 0:00:03]} Re8+ {[%emt 0:00:25]} 9. Ne2 {[%emt 0:00:06]} h5 {[%emt 0:00:07]} 10. Be3 {[%emt 0:00:05]} Nd7 {[%emt 0:05:13]} 11. a3 {[%emt 0:00:19]} Nf8 {[%emt 0:06:19]} 12. O-O-O {[%emt 0:00:16]} Be6 {[%emt 0:07:31]} 13. c4 {[%emt 0:00:30]} Rc8 {[%emt 0:01:40]} 14. Nc3 {[%emt 0:00:55]} a6 {[%emt 0:06:55]} 15. Kb1 {[%emt 0:00:53]} g6 {[%emt 0:09:37]} 16. c5 {[%emt 0:16:48]} Bb8 {[%emt 0:06:27]} 17. Be4 {[%emt 0:01:00]} f5 {[%emt 0:23:22]} 18. d5 {[%emt 0:02:19]} cxd5 {[%emt 0:01:05]} 19. Bxd5 {[%emt 0:00:42]} Qe7 {[%emt 0:02:38]} 20. Bd4 {[%emt 0:13:40]} Red8 {[%emt 0:04:07]} 21. Rhe1 {[%emt 0:01:16]} Rd7 {[%emt 0:02:02]} 22. f3 {[%emt 0:23:08]} Rcd8 {[%emt 0:02:32]} 23. Bg1 {[%emt 0:00:26]} Qf6 {[%emt 0:04:09]} 24. c6 {[%emt 0:04:10]} bxc6 {[%emt 0:04:47]} 25. Bxc6 {[%emt 0:01:04]} Rxd1+ {[%emt 0:00:36]} 26. Rxd1 {[%emt 0:00:07]} Rxd1+ {[%emt 0:01:55]} 27. Qxd1 {[%emt 0:00:08]} Be5 {[%emt 0:01:14]} 28. Qd2 {[%emt 0:01:35]} Ba2+ {[%emt 0:02:37]} 29. Kxa2 {[%emt 0:02:18]} Qxc6 {[%emt 0:00:05]} 30. Qd3 {[%emt 0:07:40]} Ne6 {[%emt 0:00:41]} 31. Nd5 {[%emt 0:00:52]} 1/2-1/2

[Event "AUT-ch U16 Boys 2022"]
[Site "Sankt Veit an der Glan"]
[Date "2022.04.11"]
[Round "3"]
[White "Lerch, Johannes"]
[Black "Kienboeck, Benjamin"]
[Result "1-0"]
[ECO "B10"]
[WhiteElo "2229"]
[BlackElo "1900"]
[Annotator "RC"]
[PlyCount "87"]
[EventDate "2022.04.11"]
[EventType "swiss"]
[EventCountry "AUT"]
[SourceTitle "playchess.com"]
[Source "ChessBase"]
[SourceQuality "1"]
[TimeControl "5400+30"]

1. e4 {[%emt 0:00:03]} c6 {[%emt 0:00:06]} 2. Nf3 {[%emt 0:00:03]} d5 {[%emt 0:00:08]} 3. d3 {[%emt 0:00:03]} dxe4 {[%emt 0:04:39]} 4. dxe4 {[%emt 0:00:06]} Qxd1+ {[%emt 0:00:06]} 5. Kxd1 {[%emt 0:00:03]} Bg4 {[%emt 0:00:27]} 6. Be2 {[%emt 0:00:04]} Nd7 {[%emt 0:00:32]} 7. Nfd2 {[%emt 0:05:06]} Bxe2+ {[%emt 0:00:57]} 8. Kxe2 {[%emt 0:00:06]} e5 {[%emt 0:00:43]} 9. a4 {[%emt 0:02:14]} a5 {[%emt 0:01:13]} 10. Nc4 {[%emt 0:01:34]} f6 {[%emt 0:13:10]} 11. Rd1 {[%emt 0:01:37]} Nc5 {[%emt 0:03:09]} 12. f3 {[%emt 0:01:09]} Nh6 {[%emt 0:04:00]} 13. Be3 {[%emt 0:10:28]} Nf7 {[%emt 0:21:39]} 14. Nbd2 {[%emt 0:02:39]} Ra6 {[%emt 0:00:36]} 15. Ra2 {[%emt 0:23:58]} Nd7 {[%emt 0:13:45]} 16. Nb3 {[%emt 0:05:10]} b6 {[%emt 0:02:40]} 17. Raa1 {[%emt 0:01:50]} g6 {[%emt 0:01:38]} 18. Rd3 {[%emt 0:01:45]} c5 {[%emt 0:04:23]} 19. Rad1 {[%emt 0:02:38]} Nb8 {[%emt 0:01:34]} 20. Na3 {[%emt 0:01:16]} Ra7 {[%emt 0:01:37]} 21. Nb5 {[%emt 0:02:17]} Rb7 {[%emt 0:00:52]} 22. Nd2 {[%emt 0:00:55]} Nc6 {[%emt 0:00:11]} 23. c3 {[%emt 0:00:15]} Na7 {[%emt 0:01:01]} 24. Nxa7 {[%emt 0:06:09]} Rxa7 {[%emt 0:00:00]} 25. Nc4 {[%emt 0:00:17]} Rb7 {[%emt 0:00:01]} 26. Bf2 {[%emt 0:02:43]} Be7 {[%emt 0:05:09]} 27. g3 {[%emt 0:02:08]} O-O {[%emt 0:04:34]} 28. Rd7 {[%emt 0:01:45]} Rfb8 {[%emt 0:00:05]} 29. f4 {[%emt 0:03:39]} exf4 {[%emt 0:02:13]} 30. gxf4 {[%emt 0:00:36]} Kf8 {[%emt 0:00:34]} 31. Bg3 {[%emt 0:01:23]} b5 {[%emt 0:01:43]} 32. axb5 {[%emt 0:01:19]} Rxd7 {[%emt 0:00:40]} 33. Rxd7 {[%emt 0:00:03]} Rxb5 {[%emt 0:00:11]} 34. e5 {[%emt 0:01:59]} fxe5 {[%emt 0:07:56]} 35. fxe5 {[%emt 0:00:11]} h5 {[%emt 0:00:37]} 36. Ra7 {[%emt 0:05:48]} Nh6 {[%emt 0:01:49]} 37. e6 {[%emt 0:04:39]} Nf5 {[%emt 0:01:06]} 38. Be5 {[%emt 0:00:40]} Bg5 {[%emt 0:02:32]} 39. Kd3 {[%emt 0:02:35]} h4 {[%emt 0:00:55]} 40. Kc2 {[%emt 0:02:05]} h3 {[%emt 0:00:34]} 41. Nd6 {[%emt 0:01:09]} Nxd6 {[%emt 0:00:37]} 42. Bxd6+ {[%emt 0:00:04]} Kg8 {[%emt 0:00:15]} 43. Ra8+ {[%emt 0:00:45]} Kg7 {[%emt 0:00:44]} 44. Be5+ {[%emt 0:00:29]} 1-0

[Event "AUT-ch U16 Boys 2022"]
[Site "Sankt Veit an der Glan"]
[Date "2022.04.11"]
[Round "3"]
[White "Wagner, Leopold Franziskus"]
[Black "Wendl, Philipp"]
[Result "1/2-1/2"]
[ECO "D02"]
[WhiteElo "2061"]
[BlackElo "2000"]
[Annotator "NA RC"]
[PlyCount "117"]
[EventDate "2022.04.11"]
[EventType "swiss"]
[EventCountry "AUT"]
[SourceTitle "playchess.com"]
[Source "ChessBase"]
[SourceQuality "1"]
[TimeControl "5400+30"]

1. d4 {[%emt 0:00:02]} Nf6 {[%emt 0:00:07]} 2. Nf3 {[%emt 0:00:05]} d5 {[%emt 0:00:04]} 3. Bf4 {[%emt 0:00:06]} c5 {[%emt 0:01:00]} 4. e3 {[%emt 0:00:07]} Nc6 {[%emt 0:00:15]} 5. Nbd2 {[%emt 0:00:08]} e6 {[%emt 0:00:25]} 6. c3 {[%emt 0:00:06]} cxd4 {[%emt 0:01:50]} 7. exd4 {[%emt 0:00:08]} Nh5 {[%emt 0:02:45]} 8. Bg3 {[%emt 0:00:33]} Nxg3 {[%emt 0:14:47]} 9. hxg3 {[%emt 0:00:02]} h6 {[%emt 0:00:26]} 10. Bd3 {[%emt 0:02:25]} Be7 {[%emt 0:05:14]} 11. Rc1 {[%emt 0:01:56]} Bf6 {[%emt 0:05:04]} 12. Qe2 {[%emt 0:02:30]} Qb6 {[%emt 0:12:23]} 13. Nb3 {[%emt 0:00:24]} a5 {[%emt 0:05:46]} 14. Nc5 {[%emt 0:10:29]} Qc7 {[%emt 0:04:41]} 15. Bb5 {[%emt 0:05:36]} b6 {[%emt 0:01:39]} 16. Nd3 {[%emt 0:00:10]} Bd7 {[%emt 0:00:09]} 17. O-O {[%emt 0:02:47]} O-O {[%emt 0:03:29]} 18. Rfe1 {[%emt 0:01:36]} Rae8 {[%emt 0:07:21]} 19. Qd1 {[%emt 0:09:37]} Na7 {[%emt 0:03:41]} 20. Bxd7 {[%emt 0:00:40]} Qxd7 {[%emt 0:02:42]} 21. Nfe5 {[%emt 0:03:29]} Qd8 {[%emt 0:04:25]} 22. f4 {[%emt 0:02:10]} Nb5 {[%emt 0:01:55]} 23. Nf2 {[%emt 0:03:54]} Nd6 {[%emt 0:00:59]} 24. Qd3 {[%emt 0:00:34]} Qc7 {[%emt 0:08:39]} 25. g4 {[%emt 0:00:47]} Bd8 {[%emt 0:01:49]} 26. Qf3 {[%emt 0:00:51]} Kh7 {[%emt 0:04:36]} 27. g5 {[%emt 0:10:18]} hxg5 {[%emt 0:02:38]} 28. Qh5+ {[%emt 0:00:08]} Kg8 {[%emt 0:00:04]} 29. fxg5 {[%emt 0:00:04]} g6 {[%emt 0:00:27]} 30. Qg4 {[%emt 0:01:04]} Qe7 {[%emt 0:01:21]} 31. Qh3 {[%emt 0:08:27]} Kg7 {[%emt 0:03:25]} 32. Qh6+ {[%emt 0:00:07]} Kg8 {[%emt 0:00:03]} 33. Qh3 {[%emt 0:05:51]} Kg7 {[%emt 0:00:17]} 34. Qh6+ {[%emt 0:09:22]} Kg8 {[%emt 0:00:07]} 35. Qh2 {[%emt 0:01:11]} Kg7 {[%emt 0:01:11]} 36. Nc6 {[%emt 0:00:07]} Qc7 {[%emt 0:00:52]} 37. Nxd8 {[%emt 0:00:10]} Qxd8 {[%emt 0:01:03]} 38. Qh6+ {[%emt 0:00:27]} Kg8 {[%emt 0:00:05]} 39. Ng4 {[%emt 0:00:10]} Nf5 {[%emt 0:00:16]} 40. Nf6+ {[%emt 0:00:07]} Qxf6 {[%emt 0:00:05]} 41. Qxf8+ {[%emt 0:00:05]} Rxf8 {[%emt 0:00:25]} 42. gxf6 {[%emt 0:00:03]} Nd6 {[%emt 0:01:29]} 43. g4 {[%emt 0:11:49]} g5 {[%emt 0:01:15]} 44. Re5 {[%emt 0:01:27]} Ne4 {[%emt 0:00:03]} 45. Re1 {[%emt 0:00:11]} Nxf6 {[%emt 0:00:05]} 46. Rxg5+ {[%emt 0:00:09]} Kh7 {[%emt 0:00:03]} 47. Rf1 {[%emt 0:01:44]} Kh6 {[%emt 0:00:44]} 48. Re5 {[%emt 0:00:03]} Kg6 {[%emt 0:00:43]} 49. g5 {[%emt 0:03:08]} Nh7 {[%emt 0:00:34]} 50. Rf2 {[%emt 0:00:34]} Re8 {[%emt 0:01:24]} 51. Rg2 {[%emt 0:00:07]} Rh8 {[%emt 0:00:35]} 52. Rh2 {[%emt 0:02:00]} Re8 {[%emt 0:00:11]} 53. Rg2 {[%emt 0:00:41]} Rh8 {[%emt 0:00:04]} 54. a3 {[%emt 0:01:51]} Nf8 {[%emt 0:00:42]} 55. Re3 {[%emt 0:00:46]} Rh5 {[%emt 0:00:20]} 56. b3 {[%emt 0:01:28]} b5 {[%emt 0:01:04]} 57. Rf3 {[%emt 0:01:21]} Nh7 {[%emt 0:00:07]} 58. Rfg3 {[%emt 0:00:09]} Nxg5 {[%emt 0:00:53]} 59. Rh2 {[%emt 0:01:54]} 1/2-1/2

[Event "AUT-ch U16 Boys 2022"]
[Site "Sankt Veit an der Glan"]
[Date "2022.04.11"]
[Round "3"]
[White "Miazhynski, Michael"]
[Black "Kuti, Oliver"]
[Result "1/2-1/2"]
[ECO "D79"]
[WhiteElo "2047"]
[BlackElo "1970"]
[Annotator "NA RC"]
[PlyCount "61"]
[EventDate "2022.04.11"]
[EventType "swiss"]
[EventCountry "AUT"]
[SourceTitle "playchess.com"]
[Source "ChessBase"]
[SourceQuality "1"]
[TimeControl "5400+30"]

1. Nf3 {[%emt 0:00:02]} Nf6 {[%emt 0:00:42]} 2. c4 {[%emt 0:00:05]} g6 {[%emt 0:00:08]} 3. g3 {[%emt 0:00:05]} Bg7 {[%emt 0:01:16]} 4. Bg2 {[%emt 0:00:07]} c6 {[%emt 0:00:32]} 5. O-O {[%emt 0:04:40]} O-O {[%emt 0:01:01]} 6. Nc3 {[%emt 0:00:40]} d5 {[%emt 0:00:11]} 7. cxd5 {[%emt 0:10:19]} cxd5 {[%emt 0:01:39]} 8. d4 {[%emt 0:01:00]} Ne4 {[%emt 0:02:51]} 9. Nxe4 {[%emt 0:29:29]} dxe4 {[%emt 0:00:03]} 10. Ng5 {[%emt 0:00:10]} Bxd4 {[%emt 0:10:51]} 11. Nxe4 {[%emt 0:00:09]} Nc6 {[%emt 0:02:52]} 12. Nc3 {[%emt 0:26:29]} Be6 {[%emt 0:24:24]} 13. Qa4 {[%emt 0:02:45]} Rc8 {[%emt 0:07:08]} 14. Bh6 {[%emt 0:02:05]} Bg7 {[%emt 0:04:55]} 15. Bxg7 {[%emt 0:00:02]} Kxg7 {[%emt 0:00:10]} 16. Rfd1 {[%emt 0:01:02]} Qb6 {[%emt 0:01:28]} 17. Qb5 {[%emt 0:02:09]} Qxb5 {[%emt 0:02:21]} 18. Nxb5 {[%emt 0:00:00]} a6 {[%emt 0:00:58]} 19. Nc3 {[%emt 0:00:17]} Rfd8 {[%emt 0:02:07]} 20. Bxc6 {[%emt 0:05:10]} Rxd1+ {[%emt 0:01:55]} 21. Rxd1 {[%emt 0:00:01]} Rxc6 {[%emt 0:00:10]} 22. f3 {[%emt 0:00:18]} b5 {[%emt 0:03:39]} 23. a3 {[%emt 0:00:05]} f5 {[%emt 0:04:36]} 24. Kf2 {[%emt 0:01:39]} Kf6 {[%emt 0:02:01]} 25. Rd2 {[%emt 0:01:24]} Rb6 {[%emt 0:06:40]} 26. Rd4 {[%emt 0:06:41]} Bc4 {[%emt 0:06:01]} 27. b4 {[%emt 0:02:49]} Rc6 {[%emt 0:01:25]} 28. Ke3 {[%emt 0:01:25]} h5 {[%emt 0:03:25]} 29. h4 {[%emt 0:01:55]} Rc8 {[%emt 0:02:34]} 30. f4 {[%emt 0:00:58]} Ke6 {[%emt 0:02:30]} 31. Kd2 {[%emt 0:00:32]} 1/2-1/2

[Event "AUT-ch U16 Boys 2022"]
[Site "Sankt Veit an der Glan"]
[Date "2022.04.11"]
[Round "3"]
[White "Hengl, Philip"]
[Black "Marakovits, Nico"]
[Result "1/2-1/2"]
[ECO "B33"]
[WhiteElo "1973"]
[BlackElo "2249"]
[Annotator "RC"]
[PlyCount "61"]
[EventDate "2022.04.11"]
[EventType "swiss"]
[EventCountry "AUT"]
[SourceTitle "playchess.com"]
[Source "ChessBase"]
[SourceQuality "1"]
[TimeControl "5400+30"]

1. e4 {[%emt 0:00:02]} c5 {[%emt 0:00:06]} 2. Nf3 {[%emt 0:00:07]} Nc6 {[%emt 0:00:05]} 3. d4 {[%emt 0:00:04]} cxd4 {[%emt 0:00:04]} 4. Nxd4 {[%emt 0:00:06]} Nf6 {[%emt 0:00:06]} 5. Nc3 {[%emt 0:00:08]} e5 {[%emt 0:00:04]} 6. Ndb5 {[%emt 0:00:08]} d6 {[%emt 0:00:05]} 7. Nd5 {[%emt 0:00:09]} Nxd5 {[%emt 0:00:12]} 8. exd5 {[%emt 0:00:13]} Nb8 {[%emt 0:00:06]} 9. c4 {[%emt 0:00:04]} a6 {[%emt 0:09:21]} 10. Qa4 {[%emt 0:00:07]} Nd7 {[%emt 0:01:13]} 11. c5 {[%emt 0:00:12]} dxc5 {[%emt 0:00:17]} 12. d6 {[%emt 0:00:06]} axb5 {[%emt 0:00:05]} 13. Qxa8 {[%emt 0:00:06]} Bxd6 {[%emt 0:00:04]} 14. Bxb5 {[%emt 0:00:54]} O-O {[%emt 0:00:37]} 15. O-O {[%emt 0:01:21]} e4 {[%emt 0:06:23]} 16. Qa4 {[%emt 0:21:10]} Qe7 {[%emt 0:07:30]} 17. Re1 {[%emt 0:04:43]} f5 {[%emt 0:05:25]} 18. Qb3+ {[%emt 0:02:07]} Kh8 {[%emt 0:07:48]} 19. Bxd7 {[%emt 0:00:11]} Qxd7 {[%emt 0:00:21]} 20. Rd1 {[%emt 0:00:19]} c4 {[%emt 0:02:58]} 21. Qc2 {[%emt 0:00:46]} Qc7 {[%emt 0:00:06]} 22. g3 {[%emt 0:02:07]} f4 {[%emt 0:06:08]} 23. Qxe4 {[%emt 0:02:25]} fxg3 {[%emt 0:03:24]} 24. hxg3 {[%emt 0:03:10]} Bf5 {[%emt 0:09:00]} 25. Qd5 {[%emt 0:11:02]} Bd3 {[%emt 0:01:22]} 26. Rxd3 {[%emt 0:02:06]} cxd3 {[%emt 0:00:10]} 27. Qxd3 {[%emt 0:00:06]} Qb6 {[%emt 0:00:04]} 28. Be3 {[%emt 0:00:49]} Qxb2 {[%emt 0:07:01]} 29. Bd4 {[%emt 0:02:21]} Qa3 {[%emt 0:00:06]} 30. Qxa3 {[%emt 0:00:20]} Bxa3 {[%emt 0:00:05]} 31. Rb1 {[%emt 0:01:47]} 1/2-1/2

[Event "AUT-ch U16 Boys 2022"]
[Site "Sankt Veit an der Glan"]
[Date "2022.04.11"]
[Round "3"]
[White "Zaytsev, Alexander"]
[Black "Stadlinger, Lukas"]
[Result "1-0"]
[ECO "C54"]
[WhiteElo "1837"]
[BlackElo "1718"]
[Annotator "NA RC"]
[PlyCount "63"]
[EventDate "2022.04.11"]
[EventType "swiss"]
[EventCountry "AUT"]
[SourceTitle "playchess.com"]
[Source "ChessBase"]
[SourceQuality "1"]
[TimeControl "5400+30"]

1. e4 {[%emt 0:00:02]} e5 {[%emt 0:00:17]} 2. Nf3 {[%emt 0:00:08]} Nc6 {[%emt 0:00:25]} 3. Bc4 {[%emt 0:00:24]} Bc5 {[%emt 0:02:10]} 4. O-O {[%emt 0:01:01]} d6 {[%emt 0:04:41]} 5. c3 {[%emt 0:01:48]} Bg4 {[%emt 0:09:17]} 6. d3 {[%emt 0:01:33]} Nf6 {[%emt 0:06:06]} 7. h3 {[%emt 0:02:39]} Bh5 {[%emt 0:03:26]} 8. Nbd2 {[%emt 0:00:52]} Qd7 {[%emt 0:04:28]} 9. Nb3 {[%emt 0:18:22]} Bb6 {[%emt 0:02:22]} 10. Be3 {[%emt 0:06:08]} O-O {[%emt 0:07:56]} 11. Re1 {[%emt 0:03:37]} Rfe8 {[%emt 0:14:37]} 12. a4 {[%emt 0:06:08]} d5 {[%emt 0:13:45]} 13. exd5 {[%emt 0:04:41]} Nxd5 {[%emt 0:02:41]} 14. Nc5 {[%emt 0:10:04]} Bxc5 {[%emt 0:05:26]} 15. Bxc5 {[%emt 0:00:10]} Nf4 {[%emt 0:00:32]} 16. Kh2 {[%emt 0:05:30]} Na5 {[%emt 0:01:47]} 17. Re3 {[%emt 0:11:31]} Nxc4 {[%emt 0:03:39]} 18. dxc4 {[%emt 0:00:02]} Qxd1 {[%emt 0:00:50]} 19. Rxd1 {[%emt 0:00:05]} e4 {[%emt 0:00:10]} 20. g4 {[%emt 0:01:01]} Nd3 {[%emt 0:02:45]} 21. Rexd3 {[%emt 0:07:10]} b6 {[%emt 0:05:17]} 22. gxh5 {[%emt 0:02:14]} bxc5 {[%emt 0:00:07]} 23. Rd7 {[%emt 0:03:56]} exf3 {[%emt 0:00:09]} 24. Rxc7 {[%emt 0:00:54]} Re2 {[%emt 0:02:22]} 25. Kg3 {[%emt 0:00:43]} Rxb2 {[%emt 0:00:31]} 26. Rdd7 {[%emt 0:00:07]} Rf8 {[%emt 0:01:30]} 27. Rxc5 {[%emt 0:01:35]} Rc2 {[%emt 0:02:06]} 28. Kxf3 {[%emt 0:01:46]} Rxc3+ {[%emt 0:00:14]} 29. Kg2 {[%emt 0:00:21]} Ra8 {[%emt 0:00:52]} 30. Rxa7 {[%emt 0:00:54]} Rd8 {[%emt 0:01:08]} 31. Rcc7 {[%emt 0:00:26]} Rf8 {[%emt 0:00:14]} 32. a5 {[%emt 0:00:27]} 1-0

[Event "AUT-ch U16 Boys 2022"]
[Site "Sankt Veit an der Glan"]
[Date "2022.04.11"]
[Round "3"]
[White "Hersel, Richard"]
[Black "Weixler, Moritz"]
[Result "1-0"]
[ECO "A88"]
[WhiteElo "1832"]
[BlackElo "1190"]
[Annotator "NA RC"]
[PlyCount "42"]
[EventDate "2022.04.11"]
[EventType "swiss"]
[EventCountry "AUT"]
[SourceTitle "playchess.com"]
[Source "ChessBase"]
[SourceQuality "1"]
[TimeControl "5400+30"]

1. d4 {[%emt 0:00:03]} f5 {[%emt 0:00:07]} 2. g3 {[%emt 0:00:07]} Nf6 {[%emt 0:00:25]} 3. Bg2 {[%emt 0:00:06]} g6 {[%emt 0:01:34]} 4. c4 {[%emt 0:02:59]} Bg7 {[%emt 0:00:26]} 5. Nc3 {[%emt 0:00:29]} O-O {[%emt 0:09:35]} 6. Nf3 {[%emt 0:06:14]} d6 {[%emt 0:00:56]} 7. O-O {[%emt 0:00:23]} Qe8 {[%emt 0:01:13]} 8. Re1 {[%emt 0:02:35]} c6 {[%emt 0:05:47]} 9. d5 {[%emt 0:08:18]} Na6 {[%emt 0:11:39]} 10. e4 {[%emt 0:20:17]} Nxe4 {[%emt 0:04:24]} 11. Nxe4 {[%emt 0:00:10]} fxe4 {[%emt 0:00:01]} 12. Nd2 {[%emt 0:00:25]} cxd5 {[%emt 0:13:33]} 13. cxd5 {[%emt 0:00:47]} b6 {[%emt 0:08:19]} 14. Nxe4 {[%emt 0:03:34]} Qf7 {[%emt 0:06:29]} 15. Qe2 {[%emt 0:07:59]} h6 {[%emt 0:03:35]} 16. Bd2 {[%emt 0:16:44]} Bb7 {[%emt 0:02:54]} 17. Nc3 {[%emt 0:09:53]} Rfe8 {[%emt 0:01:33]} 18. Bh3 {[%emt 0:04:33]} Kf8 {[%emt 0:01:45]} 19. Be6 {[%emt 0:01:43]} Qf6 {[%emt 0:00:16]} 20. Ne4 {[%emt 0:00:35]} Qe5 {[%emt 0:03:15]} 21. Qf3+ {[%emt 0:00:15]} Bf6 {[%emt 0:00:37]} 1-0

[Event "AUT-ch U16 Boys 2022"]
[Site "Sankt Veit an der Glan"]
[Date "2022.04.11"]
[Round "3"]
[White "Giselbrecht, Jerrik"]
[Black "Gschiel, Alexander"]
[Result "0-1"]
[ECO "A46"]
[WhiteElo "1707"]
[BlackElo "2109"]
[Annotator "NA RC"]
[PlyCount "70"]
[EventDate "2022.04.11"]
[EventType "swiss"]
[EventCountry "AUT"]
[SourceTitle "playchess.com"]
[Source "ChessBase"]
[SourceQuality "1"]
[TimeControl "5400+30"]

1. d4 {[%emt 0:00:07]} d5 {[%emt 0:00:07]} 2. Nf3 {[%emt 0:00:13]} Nf6 {[%emt 0:00:13]} 3. g3 {[%emt 0:01:16]} e6 {[%emt 0:00:12]} 4. Bg2 {[%emt 0:06:28]} b5 {[%emt 0:00:34]} 5. O-O {[%emt 0:03:39]} c5 {[%emt 0:01:48]} 6. a4 {[%emt 0:14:58]} b4 {[%emt 0:03:21]} 7. c4 {[%emt 0:08:05]} bxc3 {[%emt 0:06:12]} 8. Nxc3 {[%emt 0:05:25]} Nc6 {[%emt 0:05:09]} 9. Bf4 {[%emt 0:10:01]} Be7 {[%emt 0:07:06]} 10. Nb5 {[%emt 0:02:34]} O-O {[%emt 0:01:31]} 11. Nc7 {[%emt 0:05:39]} Rb8 {[%emt 0:00:33]} 12. Nb5 {[%emt 0:08:48]} Rb7 {[%emt 0:00:39]} 13. b3 {[%emt 0:05:04]} Ne4 {[%emt 0:05:32]} 14. Rc1 {[%emt 0:03:49]} a6 {[%emt 0:09:59]} 15. Nc3 {[%emt 0:03:11]} Nxc3 {[%emt 0:01:20]} 16. Rxc3 {[%emt 0:01:30]} Nxd4 {[%emt 0:00:12]} 17. Nxd4 {[%emt 0:00:56]} cxd4 {[%emt 0:00:08]} 18. Qxd4 {[%emt 0:01:36]} g5 {[%emt 0:00:13]} 19. Bd2 {[%emt 0:02:05]} Bf6 {[%emt 0:01:14]} 20. Qd3 {[%emt 0:05:29]} Bxc3 {[%emt 0:01:01]} 21. Qxc3 {[%emt 0:00:40]} f6 {[%emt 0:02:47]} 22. Rc1 {[%emt 0:02:30]} Qb6 {[%emt 0:03:03]} 23. b4 {[%emt 0:01:43]} Bd7 {[%emt 0:00:55]} 24. e4 {[%emt 0:01:41]} d4 {[%emt 0:02:11]} 25. Qb3 {[%emt 0:00:39]} Rc7 {[%emt 0:01:22]} 26. Rd1 {[%emt 0:00:54]} h6 {[%emt 0:06:25]} 27. a5 {[%emt 0:00:53]} Qb5 {[%emt 0:00:44]} 28. Bh3 {[%emt 0:00:31]} Qe5 {[%emt 0:01:38]} 29. b5 {[%emt 0:01:32]} axb5 {[%emt 0:01:30]} 30. Bf5 {[%emt 0:00:42]} Rc4 {[%emt 0:01:29]} 31. f4 {[%emt 0:01:19]} Qc5 {[%emt 0:01:07]} 32. Bh3 {[%emt 0:01:00]} Kg7 {[%emt 0:02:22]} 33. Bf1 {[%emt 0:00:53]} d3+ {[%emt 0:00:48]} 34. Kh1 {[%emt 0:00:31]} Rxe4 {[%emt 0:00:51]} 35. Bg2 {[%emt 0:01:01]} Bc6 {[%emt 0:01:37]} 0-1